[Event "2026 Biel Blitz Open"]
[Site "Biel, CH"]
[Date "2026.07.19"]
[Round "5"]
[White "Boner, Timm"]
[Black "Jud, Marc"]
[Result "1/2-1/2"]
[Board "48"]
[TimeControl "180+2"]
[WhiteFideId "1330039"]
[BlackFideId "1309099"]
[WhiteElo "1705"]
[BlackElo "1946"]
[WhiteClock "0:01:31"]
[BlackClock "0:01:05"]
[Variant "Standard"]
[EndDate "2026.07.19"]
[EndTime "13:15:26"]

1. e4 {[%clk 0:03:02]}  c5 {[%clk 0:03:03]} 2. Nf3 {[%clk 0:03:03]}  d6 {[%clk 0:03:04]} 3. Bc4 {[%clk 0:03:03]}  e6 {[%clk 0:03:05]}
4. O-O {[%clk 0:03:03]}  Nf6 {[%clk 0:03:06]} 5. Re1 {[%clk 0:03:04]}  Nc6 {[%clk 0:03:07]} 6. Nc3 {[%clk 0:03:04]}  a6 {[%clk 0:03:08]}
7. a3 {[%clk 0:03:04]}  Be7 {[%clk 0:03:08]} 8. e5 {[%clk 0:03:02]}  dxe5 {[%clk 0:03:07]} 9. Nxe5 {[%clk 0:03:02]}  Nxe5 {[%clk 0:03:08]}
10. Rxe5 {[%clk 0:03:00]}  Qc7 {[%clk 0:03:06]} 11. Re1 {[%clk 0:02:43]}  O-O {[%clk 0:03:04]} 12. Bb3 {[%clk 0:02:41]}  b5 {[%clk 0:03:00]}
13. d3 {[%clk 0:02:35]}  Bb7 {[%clk 0:03:01]} 14. Qd2 {[%clk 0:02:26]}  Rad8 {[%clk 0:02:50]} 15. Qf4 {[%clk 0:02:23]}  Qc6 {[%clk 0:02:50]}
16. Qf3 {[%clk 0:02:15]}  Qxf3 {[%clk 0:02:42]} 17. gxf3 {[%clk 0:02:15]}  Bxf3 {[%clk 0:02:43]} 18. Bf4 {[%clk 0:02:10]}  b4 {[%clk 0:02:35]}
19. Ne4 {[%clk 0:02:02]}  Nxe4 {[%clk 0:02:26]} 20. dxe4 {[%clk 0:02:02]}  a5 {[%clk 0:02:21]} 21. Bc7 {[%clk 0:01:58]}  Rd2 {[%clk 0:02:15]}
22. Re3 {[%clk 0:01:38]}  Bh5 {[%clk 0:02:00]} 23. Rd3 {[%clk 0:01:37]}  Rxd3 {[%clk 0:01:46]} 24. cxd3 {[%clk 0:01:38]}  Be2 {[%clk 0:01:43]}
25. Bc4 {[%clk 0:01:37]}  Ra8 {[%clk 0:01:34]} 26. axb4 {[%clk 0:01:37]}  cxb4 {[%clk 0:01:35]} 27. b3 {[%clk 0:01:33]}  Bc5 {[%clk 0:01:13]}
28. Rxa5 {[%clk 0:01:31]}  Rxa5 {[%clk 0:01:13]} 29. Bxa5 {[%clk 0:01:31]}  e5 {[%clk 0:01:05]} 1/2-1/2

[Event "2026 Biel Blitz Open"]
[Site "Biel, CH"]
[Date "2026.07.19"]
[Round "5"]
[White "Garcia, Miguel"]
[Black "Gireada, Lucas"]
[Result "1-0"]
[Board "50"]
[TimeControl "180+2"]
[WhiteFideId "1317431"]
[BlackFideId "1373544"]
[WhiteElo "1938"]
[BlackElo "1651"]
[WhiteClock "0:00:22"]
[BlackClock "0:00:09"]
[Variant "Standard"]
[EndDate "2026.07.19"]
[EndTime "13:11:04"]

1. Nf3 {[%clk 0:03:03]}  Nf6 {[%clk 0:03:03]} 2. g3 {[%clk 0:03:04]}  b6 {[%clk 0:03:05]} 3. Bg2 {[%clk 0:03:04]}  Bb7 {[%clk 0:03:05]}
4. O-O {[%clk 0:03:04]}  e6 {[%clk 0:03:08]} 5. d3 {[%clk 0:02:50]}  d5 {[%clk 0:03:09]} 6. Nbd2 {[%clk 0:02:50]}  Be7 {[%clk 0:03:11]}
7. Re1 {[%clk 0:02:50]}  O-O {[%clk 0:03:08]} 8. c3 {[%clk 0:02:42]}  c5 {[%clk 0:03:09]} 9. Qc2 {[%clk 0:02:43]}  Nc6 {[%clk 0:03:06]}
10. e4 {[%clk 0:02:43]}  Rc8 {[%clk 0:03:01]} 11. Nf1 {[%clk 0:02:34]}  h6 {[%clk 0:02:59]} 12. Bd2 {[%clk 0:02:22]}  d4 {[%clk 0:02:52]}
13. c4 {[%clk 0:02:21]}  Nd7 {[%clk 0:02:47]} 14. a3 {[%clk 0:02:17]}  a5 {[%clk 0:02:31]} 15. Rab1 {[%clk 0:02:14]}  Nde5 {[%clk 0:02:16]}
16. Bf4 {[%clk 0:02:10]}  Bd6 {[%clk 0:02:13]} 17. Nxe5 {[%clk 0:02:08]}  Bxe5 {[%clk 0:02:10]} 18. Bxe5 {[%clk 0:02:06]}  Nxe5 {[%clk 0:02:10]}
19. f4 {[%clk 0:01:58]}  Ng4 {[%clk 0:01:45]} 20. h3 {[%clk 0:01:59]}  Ne3 {[%clk 0:01:47]} 21. Nxe3 {[%clk 0:01:59]}  dxe3 {[%clk 0:01:48]}
22. Rxe3 {[%clk 0:01:57]}  Qd4 {[%clk 0:01:49]} 23. Rbe1 {[%clk 0:01:57]}  Rfd8 {[%clk 0:01:47]} 24. Kh2 {[%clk 0:01:55]}  Ba6 {[%clk 0:01:42]}
25. Qc3 {[%clk 0:01:49]}  Qxc3 {[%clk 0:01:25]} 26. bxc3 {[%clk 0:01:50]}  Rd7 {[%clk 0:01:25]} 27. Rb1 {[%clk 0:01:39]}  Rb8 {[%clk 0:01:19]}
28. a4 {[%clk 0:01:34]}  Kf8 {[%clk 0:01:15]} 29. e5 {[%clk 0:01:32]}  Ke7 {[%clk 0:01:07]} 30. Kg1 {[%clk 0:01:24]}  Rc7 {[%clk 0:01:07]}
31. Kf2 {[%clk 0:01:24]}  Bc8 {[%clk 0:01:00]} 32. Bf3 {[%clk 0:01:17]}  Bd7 {[%clk 0:01:00]} 33. Bd1 {[%clk 0:01:17]}  Bc6 {[%clk 0:01:01]}
34. d4 {[%clk 0:01:08]}  cxd4 {[%clk 0:00:43]} 35. cxd4 {[%clk 0:01:08]}  Rd7 {[%clk 0:00:44]} 36. c5 {[%clk 0:00:54]}  Rxd4 {[%clk 0:00:33]}
37. cxb6 {[%clk 0:00:47]}  Rb4 {[%clk 0:00:31]} 38. Rxb4 {[%clk 0:00:33]}  axb4 {[%clk 0:00:32]} 39. a5 {[%clk 0:00:33]}  Ra8 {[%clk 0:00:33]}
40. Rb3 {[%clk 0:00:30]}  Ba4 {[%clk 0:00:25]} 41. b7 {[%clk 0:00:22]}  Rb8 {[%clk 0:00:12]} 42. Rxb4 {[%clk 0:00:22]}  Bxd1 {[%clk 0:00:13]}
43. a6 {[%clk 0:00:20]}  Kd7 {[%clk 0:00:08]} 44. a7 {[%clk 0:00:24]}  Kc7 {[%clk 0:00:09]} 45. a8=Q {[%clk 0:00:22]} 1-0

[Event "2026 Biel Blitz Open"]
[Site "Biel, CH"]
[Date "2026.07.19"]
[Round "5"]
[White "Wilhelm, Serge"]
[Black "Kamildjanov, Saidbek"]
[Result "1-0"]
[Board "51"]
[TimeControl "180+2"]
[WhiteFideId "1305808"]
[BlackFideId "151105026"]
[WhiteElo "1923"]
[BlackElo "1659"]
[WhiteClock "0:00:28"]
[BlackClock "0:00:40"]
[Variant "Standard"]
[EndDate "2026.07.19"]
[EndTime "13:12:06"]

1. Nf3 {[%clk 0:03:03]}  Nc6 {[%clk 0:03:03]} 2. g3 {[%clk 0:03:04]}  Nf6 {[%clk 0:03:04]} 3. Bg2 {[%clk 0:03:04]}  d5 {[%clk 0:03:03]}
4. d4 {[%clk 0:03:03]}  Bf5 {[%clk 0:03:04]} 5. O-O {[%clk 0:02:58]}  e6 {[%clk 0:03:04]} 6. Bf4 {[%clk 0:02:51]}  Bd6 {[%clk 0:03:05]}
7. Bxd6 {[%clk 0:02:50]}  Qxd6 {[%clk 0:03:05]} 8. Nbd2 {[%clk 0:02:46]}  O-O {[%clk 0:03:05]} 9. e3 {[%clk 0:02:41]}  h6 {[%clk 0:03:03]}
10. c4 {[%clk 0:02:40]}  Ne7 {[%clk 0:02:57]} 11. c5 {[%clk 0:02:33]}  Qd7 {[%clk 0:02:57]} 12. Ne5 {[%clk 0:02:34]}  Qd8 {[%clk 0:02:56]}
13. b4 {[%clk 0:02:32]}  Nd7 {[%clk 0:02:54]} 14. Ndf3 {[%clk 0:02:20]}  Nxe5 {[%clk 0:02:54]} 15. Nxe5 {[%clk 0:02:20]}  Nc6 {[%clk 0:02:56]}
16. Nxc6 {[%clk 0:02:13]}  bxc6 {[%clk 0:02:57]} 17. Qa4 {[%clk 0:02:13]}  Qd7 {[%clk 0:02:47]} 18. Rfc1 {[%clk 0:02:04]}  Bd3 {[%clk 0:02:37]}
19. Qd1 {[%clk 0:02:02]}  Bg6 {[%clk 0:02:37]} 20. Qd2 {[%clk 0:02:01]}  Rab8 {[%clk 0:02:36]} 21. a3 {[%clk 0:01:51]}  Qe7 {[%clk 0:02:25]}
22. f4 {[%clk 0:01:51]}  f6 {[%clk 0:02:22]} 23. Rf1 {[%clk 0:01:51]}  Bf5 {[%clk 0:01:51]} 24. Rf2 {[%clk 0:01:49]}  e5 {[%clk 0:01:40]}
25. fxe5 {[%clk 0:01:46]}  fxe5 {[%clk 0:01:40]} 26. Raf1 {[%clk 0:01:43]}  Bg6 {[%clk 0:01:37]} 27. Bh3 {[%clk 0:01:35]}  exd4 {[%clk 0:01:23]}
28. exd4 {[%clk 0:01:30]}  Be4 {[%clk 0:01:10]} 29. Qe3 {[%clk 0:01:19]}  Rxf2 {[%clk 0:00:59]} 30. Rxf2 {[%clk 0:01:20]}  Rf8 {[%clk 0:01:00]}
31. Rxf8+ {[%clk 0:01:06]}  Qxf8 {[%clk 0:00:57]} 32. Qf2 {[%clk 0:01:07]}  Qe7 {[%clk 0:00:38]} 33. Qe3 {[%clk 0:00:51]}  Qf6 {[%clk 0:00:35]}
34. Qf2 {[%clk 0:00:50]}  Qg5 {[%clk 0:00:33]} 35. Qf4 {[%clk 0:00:42]}  Qxf4 {[%clk 0:00:28]} 36. gxf4 {[%clk 0:00:43]}  Kf7 {[%clk 0:00:30]}
37. Bd7 {[%clk 0:00:32]}  Kf6 {[%clk 0:00:30]} 38. Kf2 {[%clk 0:00:33]}  g5 {[%clk 0:00:30]} 39. fxg5+ {[%clk 0:00:33]}  Kxg5 {[%clk 0:00:29]}
40. Bxc6 {[%clk 0:00:31]}  Kf4 {[%clk 0:00:30]} 41. Be8 {[%clk 0:00:24]}  Bd3 {[%clk 0:00:30]} 42. b5 {[%clk 0:00:20]}  Bxb5 {[%clk 0:00:30]}
43. Bxb5 {[%clk 0:00:21]}  Ke4 {[%clk 0:00:29]} 44. Ke2 {[%clk 0:00:18]}  Kxd4 {[%clk 0:00:30]} 45. c6 {[%clk 0:00:19]}  Kc3 {[%clk 0:00:30]}
46. Kd1 {[%clk 0:00:19]}  d4 {[%clk 0:00:30]} 47. a4 {[%clk 0:00:12]}  Kb4 {[%clk 0:00:28]} 48. Kd2 {[%clk 0:00:13]}  Kc5 {[%clk 0:00:28]}
49. Kd3 {[%clk 0:00:12]}  a6 {[%clk 0:00:27]} 50. Bxa6 {[%clk 0:00:13]}  Kxc6 {[%clk 0:00:28]} 51. Kxd4 {[%clk 0:00:14]}  Kd6 {[%clk 0:00:29]}
52. Bb7 {[%clk 0:00:12]}  c6 {[%clk 0:00:25]} 53. a5 {[%clk 0:00:13]}  c5+ {[%clk 0:00:26]} 54. Kc4 {[%clk 0:00:14]}  Kc7 {[%clk 0:00:24]}
55. a6 {[%clk 0:00:15]}  Kb6 {[%clk 0:00:28]} 56. h4 {[%clk 0:00:15]}  Ka7 {[%clk 0:00:28]} 57. Kxc5 {[%clk 0:00:16]}  Kb8 {[%clk 0:00:27]}
58. Kd6 {[%clk 0:00:18]}  Ka7 {[%clk 0:00:28]} 59. Ke6 {[%clk 0:00:19]}  Kb8 {[%clk 0:00:28]} 60. Kf6 {[%clk 0:00:20]}  Ka7 {[%clk 0:00:29]}
61. Kg6 {[%clk 0:00:22]}  Kb8 {[%clk 0:00:30]} 62. Kxh6 {[%clk 0:00:23]}  Ka7 {[%clk 0:00:32]} 63. Kg6 {[%clk 0:00:24]}  Kb8 {[%clk 0:00:33]}
64. h5 {[%clk 0:00:26]}  Ka7 {[%clk 0:00:35]} 65. h6 {[%clk 0:00:27]}  Kb8 {[%clk 0:00:36]} 66. h7 {[%clk 0:00:28]}  Ka7 {[%clk 0:00:37]}
67. h8=Q {[%clk 0:00:28]}  Kb6 {[%clk 0:00:38]} 68. Qb8 {[%clk 0:00:27]}  Ka5 {[%clk 0:00:39]} 69. Bc8 {[%clk 0:00:27]}  Ka4 {[%clk 0:00:40]}
70. a7 {[%clk 0:00:28]}  Ka5 {[%clk 0:00:40]} 71. a8=R# {[%clk 0:00:28]} 1-0

[Event "2026 Biel Blitz Open"]
[Site "Biel, CH"]
[Date "2026.07.19"]
[Round "5"]
[White "Chu, Wa Ching David"]
[Black "Delion, Helge"]
[Result "1-0"]
[Board "52"]
[TimeControl "180+2"]
[WhiteFideId "6013180"]
[BlackFideId "12914568"]
[WhiteElo "1673"]
[BlackElo "1911"]
[WhiteClock "0:00:11"]
[BlackClock "0:00:43"]
[Variant "Standard"]
[EndDate "2026.07.19"]
[EndTime "13:12:08"]

1. d4 {[%clk 0:03:02]}  Nf6 {[%clk 0:03:03]} 2. Bg5 {[%clk 0:03:03]}  Ne4 {[%clk 0:02:58]} 3. Bh4 {[%clk 0:03:01]}  d5 {[%clk 0:03:04]}
4. f3 {[%clk 0:03:02]}  Nf6 {[%clk 0:03:04]} 5. Nc3 {[%clk 0:03:02]}  Bf5 {[%clk 0:03:04]} 6. Bxf6 {[%clk 0:02:57]}  exf6 {[%clk 0:03:03]}
7. e4 {[%clk 0:02:58]}  dxe4 {[%clk 0:03:03]} 8. fxe4 {[%clk 0:02:59]}  Bg6 {[%clk 0:03:00]} 9. Nf3 {[%clk 0:02:59]}  Nc6 {[%clk 0:02:52]}
10. Bb5 {[%clk 0:02:58]}  a6 {[%clk 0:02:44]} 11. Bxc6+ {[%clk 0:02:56]}  bxc6 {[%clk 0:02:45]} 12. Qd2 {[%clk 0:02:48]}  Bb4 {[%clk 0:02:43]}
13. Qe3 {[%clk 0:02:37]}  O-O {[%clk 0:02:36]} 14. O-O {[%clk 0:02:36]}  Re8 {[%clk 0:02:35]} 15. Nd2 {[%clk 0:02:27]}  Rb8 {[%clk 0:01:55]}
16. Rab1 {[%clk 0:02:18]}  c5 {[%clk 0:01:44]} 17. dxc5 {[%clk 0:01:56]}  Bxc5 {[%clk 0:01:43]} 18. Qxc5 {[%clk 0:01:56]}  Qxd2 {[%clk 0:01:43]}
19. Rf2 {[%clk 0:01:09]}  Qd6 {[%clk 0:01:39]} 20. Qxd6 {[%clk 0:00:56]}  cxd6 {[%clk 0:01:37]} 21. Re2 {[%clk 0:00:55]}  Rb4 {[%clk 0:01:31]}
22. b3 {[%clk 0:00:19]}  Bxe4 {[%clk 0:01:21]} 23. Nxe4 {[%clk 0:00:20]}  Rbxe4 {[%clk 0:01:21]} 24. Rxe4 {[%clk 0:00:22]}  Rxe4 {[%clk 0:01:22]}
25. Rd1 {[%clk 0:00:23]}  Re6 {[%clk 0:01:17]} 26. Kf2 {[%clk 0:00:23]}  Kf8 {[%clk 0:01:19]} 27. Rd5 {[%clk 0:00:26]}  Re5 {[%clk 0:00:54]}
28. Rxd6 {[%clk 0:00:27]}  Ra5 {[%clk 0:00:54]} 29. a4 {[%clk 0:00:26]}  Ke7 {[%clk 0:00:55]} 30. Rb6 {[%clk 0:00:22]}  Rc5 {[%clk 0:00:51]}
31. c4 {[%clk 0:00:22]}  a5 {[%clk 0:00:52]} 32. Ke3 {[%clk 0:00:12]}  f5 {[%clk 0:00:43]} 33. Kd4 {[%clk 0:00:12]}  Rc7 {[%clk 0:00:39]}
34. Ra6 {[%clk 0:00:08]}  Rb7 {[%clk 0:00:39]} 35. Kc3 {[%clk 0:00:08]}  g5 {[%clk 0:00:38]} 36. Rxa5 {[%clk 0:00:09]}  Kf6 {[%clk 0:00:39]}
37. Ra6+ {[%clk 0:00:10]}  Ke5 {[%clk 0:00:40]} 38. Rh6 {[%clk 0:00:11]}  f6 {[%clk 0:00:41]} 39. Rh3 {[%clk 0:00:10]}  f4 {[%clk 0:00:41]}
40. Rd3 {[%clk 0:00:10]}  g4 {[%clk 0:00:41]} 41. h3 {[%clk 0:00:09]}  h5 {[%clk 0:00:42]} 42. hxg4 {[%clk 0:00:10]}  hxg4 {[%clk 0:00:44]}
43. a5 {[%clk 0:00:11]}  Ke4 {[%clk 0:00:42]} 44. b4 {[%clk 0:00:11]}  f3 {[%clk 0:00:43]} 45. gxf3+ {[%clk 0:00:12]}  gxf3 {[%clk 0:00:43]}
46. Rd6 {[%clk 0:00:11]}  f5 {[%clk 0:00:41]} 47. a6 {[%clk 0:00:10]}  Ra7 {[%clk 0:00:40]} 48. b5 {[%clk 0:00:11]}  f2 {[%clk 0:00:41]}
49. Rd1 {[%clk 0:00:12]}  Ke3 {[%clk 0:00:40]} 50. c5 {[%clk 0:00:12]}  Ke2 {[%clk 0:00:41]} 51. Rh1 {[%clk 0:00:09]}  f1=Q {[%clk 0:00:41]}
52. Rxf1 {[%clk 0:00:11]}  Kxf1 {[%clk 0:00:43]} 53. b6 {[%clk 0:00:08]}  Rxa6 {[%clk 0:00:44]} 54. b7 {[%clk 0:00:10]}  Ra3+ {[%clk 0:00:42]}
55. Kb2 {[%clk 0:00:09]}  Re3 {[%clk 0:00:42]} 56. b8=Q {[%clk 0:00:09]}  Re4 {[%clk 0:00:42]} 57. Qf8 {[%clk 0:00:09]}  f4 {[%clk 0:00:43]}
58. c6 {[%clk 0:00:09]}  Ke2 {[%clk 0:00:44]} 59. c7 {[%clk 0:00:10]}  f3 {[%clk 0:00:42]} 60. c8=Q {[%clk 0:00:10]}  f2 {[%clk 0:00:43]}
61. Qc2 {[%clk 0:00:11]}  Ke3 {[%clk 0:00:43]} 62. Qfxf2+ {[%clk 0:00:11]} 1-0

[Event "2026 Biel Blitz Open"]
[Site "Biel, CH"]
[Date "2026.07.19"]
[Round "6"]
[White "Aronyak Ghosh"]
[Black "Bu, Xiangzhi"]
[Result "1/2-1/2"]
[Board "1"]
[TimeControl "180+2"]
[WhiteFideId "25072846"]
[BlackFideId "8601445"]
[WhiteElo "2488"]
[BlackElo "2719"]
[WhiteTitle "IM"]
[BlackTitle "GM"]
[WhiteClock "0:00:10"]
[BlackClock "0:00:15"]
[Variant "Standard"]
[EndDate "2026.07.19"]
[EndTime "13:28:14"]

1. d4 {[%clk 0:03:02]}  Nf6 {[%clk 0:03:03]} 2. Bf4 {[%clk 0:03:00]}  e6 {[%clk 0:03:04]} 3. e3 {[%clk 0:03:01]}  d5 {[%clk 0:03:05]}
4. Nf3 {[%clk 0:03:00]}  Bd6 {[%clk 0:03:05]} 5. Bg3 {[%clk 0:03:01]}  c5 {[%clk 0:03:07]} 6. dxc5 {[%clk 0:03:00]}  Bxc5 {[%clk 0:03:08]}
7. c4 {[%clk 0:02:59]}  O-O {[%clk 0:03:06]} 8. a3 {[%clk 0:02:57]}  Nc6 {[%clk 0:02:59]} 9. Qc2 {[%clk 0:02:58]}  Qa5+ {[%clk 0:02:54]}
10. Nbd2 {[%clk 0:02:48]}  Ne4 {[%clk 0:02:31]} 11. Rc1 {[%clk 0:02:37]}  Nxd2 {[%clk 0:02:03]} 12. Nxd2 {[%clk 0:02:32]}  Be7 {[%clk 0:01:48]}
13. Bd3 {[%clk 0:02:29]}  dxc4 {[%clk 0:01:35]} 14. Bxc4 {[%clk 0:02:21]}  Rd8 {[%clk 0:01:34]} 15. Qc3 {[%clk 0:02:07]}  Qxc3 {[%clk 0:01:14]}
16. Rxc3 {[%clk 0:02:08]}  Bd7 {[%clk 0:01:15]} 17. Ne4 {[%clk 0:01:36]}  Rac8 {[%clk 0:01:11]} 18. Ba2 {[%clk 0:01:16]}  Be8 {[%clk 0:00:55]}
19. Ke2 {[%clk 0:01:13]}  Nb8 {[%clk 0:00:30]} 20. Rhc1 {[%clk 0:00:57]}  Rxc3 {[%clk 0:00:31]} 21. Nxc3 {[%clk 0:00:55]}  Bc6 {[%clk 0:00:29]}
22. f3 {[%clk 0:00:55]}  Nd7 {[%clk 0:00:29]} 23. Bb1 {[%clk 0:00:51]}  Nb6 {[%clk 0:00:14]} 24. Be4 {[%clk 0:00:49]}  Bxe4 {[%clk 0:00:14]}
25. Nxe4 {[%clk 0:00:49]}  Nd5 {[%clk 0:00:15]} 26. Rc2 {[%clk 0:00:46]}  Kf8 {[%clk 0:00:11]} 27. Nd2 {[%clk 0:00:38]}  Bd6 {[%clk 0:00:06]}
28. Bxd6+ {[%clk 0:00:26]}  Rxd6 {[%clk 0:00:08]} 29. g3 {[%clk 0:00:25]}  Ke8 {[%clk 0:00:09]} 30. e4 {[%clk 0:00:22]}  Nb6 {[%clk 0:00:08]}
31. Rc7 {[%clk 0:00:14]}  Rd7 {[%clk 0:00:09]} 32. Rxd7 {[%clk 0:00:15]}  Kxd7 {[%clk 0:00:10]} 33. Kd3 {[%clk 0:00:16]}  Kc6 {[%clk 0:00:10]}
34. Nc4 {[%clk 0:00:16]}  Nxc4 {[%clk 0:00:10]} 35. Kxc4 {[%clk 0:00:15]} 1/2-1/2

[Event "2026 Biel Blitz Open"]
[Site "Biel, CH"]
[Date "2026.07.19"]
[Round "6"]
[White "Gloeckler, Christian"]
[Black "Arjun Kalyan"]
[Result "0-1"]
[Board "2"]
[TimeControl "180+2"]
[WhiteFideId "34608966"]
[BlackFideId "35018701"]
[WhiteElo "2513"]
[BlackElo "2451"]
[WhiteTitle "IM"]
[BlackTitle "GM"]
[WhiteClock "0:00:04"]
[BlackClock "0:00:10"]
[Variant "Standard"]
[EndDate "2026.07.19"]
[EndTime "13:27:54"]

1. e4 {[%clk 0:03:03]}  e5 {[%clk 0:03:03]} 2. Nc3 {[%clk 0:03:02]}  Nf6 {[%clk 0:03:03]} 3. d4 {[%clk 0:03:03]}  exd4 {[%clk 0:03:02]}
4. Qxd4 {[%clk 0:03:04]}  Nc6 {[%clk 0:03:03]} 5. Qd3 {[%clk 0:03:05]}  Bc5 {[%clk 0:02:59]} 6. Bf4 {[%clk 0:03:02]}  O-O {[%clk 0:02:52]}
7. O-O-O {[%clk 0:02:33]}  d6 {[%clk 0:02:43]} 8. f3 {[%clk 0:02:30]}  Be6 {[%clk 0:02:25]} 9. Bg5 {[%clk 0:01:53]}  a5 {[%clk 0:01:42]}
10. g4 {[%clk 0:01:29]}  a4 {[%clk 0:01:42]} 11. a3 {[%clk 0:01:20]}  Ne5 {[%clk 0:01:36]} 12. Qe2 {[%clk 0:01:19]}  c6 {[%clk 0:01:29]}
13. h3 {[%clk 0:00:57]}  h6 {[%clk 0:01:18]} 14. Bh4 {[%clk 0:00:54]}  Ng6 {[%clk 0:00:57]} 15. Bg3 {[%clk 0:00:51]}  Qb6 {[%clk 0:00:58]}
16. Qh2 {[%clk 0:00:39]}  d5 {[%clk 0:00:59]} 17. e5 {[%clk 0:00:40]}  d4 {[%clk 0:01:00]} 18. Nxa4 {[%clk 0:00:22]}  Rxa4 {[%clk 0:01:01]}
19. exf6 {[%clk 0:00:23]}  Bxa3 {[%clk 0:00:37]} 20. bxa3 {[%clk 0:00:20]}  Rxa3 {[%clk 0:00:39]} 21. Kd2 {[%clk 0:00:05]}  Re8 {[%clk 0:00:29]}
22. Bd3 {[%clk 0:00:05]}  Bc4 {[%clk 0:00:21]} 23. Rc1 {[%clk 0:00:03]}  Qa5+ {[%clk 0:00:13]} 24. Kd1 {[%clk 0:00:04]}  Bxd3 {[%clk 0:00:14]}
25. Qd2 {[%clk 0:00:05]}  Qa4 {[%clk 0:00:12]} 26. h4 {[%clk 0:00:04]}  Rc3 {[%clk 0:00:08]} 27. h5 {[%clk 0:00:04]}  Ne5 {[%clk 0:00:09]}
28. fxg7 {[%clk 0:00:04]}  Nc4 {[%clk 0:00:10]} 0-1

[Event "2026 Biel Blitz Open"]
[Site "Biel, CH"]
[Date "2026.07.19"]
[Round "6"]
[White "Ling, Chenxuan"]
[Black "Mohammad Nubairshah Shaikh"]
[Result "0-1"]
[Board "3"]
[TimeControl "180+2"]
[WhiteFideId "30983118"]
[BlackFideId "5053196"]
[WhiteElo "2235"]
[BlackElo "2316"]
[WhiteTitle "CM"]
[BlackTitle "IM"]
[WhiteClock "0:00:06"]
[BlackClock "0:00:12"]
[Variant "Standard"]
[EndDate "2026.07.19"]
[EndTime "13:29:54"]

1. d4 {[%clk 0:03:02]}  d5 {[%clk 0:03:04]} 2. c4 {[%clk 0:03:02]}  c6 {[%clk 0:03:05]} 3. Nc3 {[%clk 0:03:03]}  dxc4 {[%clk 0:03:06]}
4. a4 {[%clk 0:03:03]}  e5 {[%clk 0:03:07]} 5. e3 {[%clk 0:03:01]}  exd4 {[%clk 0:03:08]} 6. exd4 {[%clk 0:03:01]}  Be6 {[%clk 0:03:09]}
7. Nf3 {[%clk 0:02:59]}  Bb4 {[%clk 0:02:58]} 8. Be2 {[%clk 0:02:57]}  Nd7 {[%clk 0:02:57]} 9. O-O {[%clk 0:02:56]}  Ngf6 {[%clk 0:02:57]}
10. Bg5 {[%clk 0:02:55]}  O-O {[%clk 0:02:57]} 11. Qc2 {[%clk 0:02:48]}  Qa5 {[%clk 0:02:14]} 12. Bd2 {[%clk 0:02:35]}  h6 {[%clk 0:01:58]}
13. Rfe1 {[%clk 0:02:34]}  Rfe8 {[%clk 0:01:59]} 14. h3 {[%clk 0:02:23]}  Rad8 {[%clk 0:02:00]} 15. Rad1 {[%clk 0:02:22]}  Nb6 {[%clk 0:02:00]}
16. Ra1 {[%clk 0:02:08]}  Bf5 {[%clk 0:02:01]} 17. Qc1 {[%clk 0:02:04]}  Bd3 {[%clk 0:02:00]} 18. Bd1 {[%clk 0:01:03]}  Rxe1+ {[%clk 0:01:38]}
19. Bxe1 {[%clk 0:01:03]}  c5 {[%clk 0:00:50]} 20. dxc5 {[%clk 0:00:58]}  Qxc5 {[%clk 0:00:51]} 21. Bd2 {[%clk 0:00:58]}  Qf5 {[%clk 0:00:41]}
22. Be3 {[%clk 0:00:50]}  Nbd5 {[%clk 0:00:37]} 23. Bd4 {[%clk 0:00:39]}  b6 {[%clk 0:00:20]} 24. b3 {[%clk 0:00:21]}  Nxc3 {[%clk 0:00:17]}
25. Bxc3 {[%clk 0:00:21]}  Bxc3 {[%clk 0:00:17]} 26. Qxc3 {[%clk 0:00:22]}  Ne4 {[%clk 0:00:19]} 27. Qe5 {[%clk 0:00:17]}  Qxe5 {[%clk 0:00:11]}
28. Nxe5 {[%clk 0:00:17]}  cxb3 {[%clk 0:00:06]} 29. Bxb3 {[%clk 0:00:18]}  Ba6 {[%clk 0:00:04]} 30. Nxf7 {[%clk 0:00:17]}  Rd3 {[%clk 0:00:05]}
31. Nd6+ {[%clk 0:00:07]}  Rxb3 {[%clk 0:00:06]} 32. Nxe4 {[%clk 0:00:09]}  Bd3 {[%clk 0:00:05]} 33. Nd2 {[%clk 0:00:09]}  Rb2 {[%clk 0:00:07]}
34. Nf3 {[%clk 0:00:10]}  a5 {[%clk 0:00:07]} 35. Nd4 {[%clk 0:00:09]}  Kf7 {[%clk 0:00:08]} 36. Rd1 {[%clk 0:00:08]}  Rb1 {[%clk 0:00:10]}
37. Rxb1 {[%clk 0:00:08]}  Bxb1 {[%clk 0:00:11]} 38. Kf1 {[%clk 0:00:09]}  Kf6 {[%clk 0:00:10]} 39. Ke2 {[%clk 0:00:09]}  Ke5 {[%clk 0:00:11]}
40. Nb5 {[%clk 0:00:08]}  Bc2 {[%clk 0:00:08]} 41. Nc3 {[%clk 0:00:09]}  Kd4 {[%clk 0:00:09]} 42. Kd2 {[%clk 0:00:10]}  Bd3 {[%clk 0:00:10]}
43. f4 {[%clk 0:00:09]}  Bf1 {[%clk 0:00:11]} 44. g4 {[%clk 0:00:06]}  Bxh3 {[%clk 0:00:12]} 45. g5 {[%clk 0:00:07]}  h5 {[%clk 0:00:13]}
46. Ne2+ {[%clk 0:00:06]}  Kc4 {[%clk 0:00:10]} 47. Ke3 {[%clk 0:00:03]}  h4 {[%clk 0:00:07]} 48. Ke4 {[%clk 0:00:07]}  Bd7 {[%clk 0:00:06]}
49. f5 {[%clk 0:00:06]}  h3 {[%clk 0:00:07]} 50. Ng3 {[%clk 0:00:06]}  h2 {[%clk 0:00:08]} 51. f6 {[%clk 0:00:07]}  gxf6 {[%clk 0:00:10]}
52. gxf6 {[%clk 0:00:08]}  Be6 {[%clk 0:00:05]} 53. Ke5 {[%clk 0:00:05]}  Bf7 {[%clk 0:00:09]} 54. Kd6 {[%clk 0:00:06]}  Kb4 {[%clk 0:00:10]}
55. Kc7 {[%clk 0:00:06]}  b5 {[%clk 0:00:10]} 56. axb5 {[%clk 0:00:06]}  Kxb5 {[%clk 0:00:12]} 57. Kd6 {[%clk 0:03:02]} 0-1